[Event "Titled Tuesday Blitz June 6 Early 2023"]
[White "Babazada, Khazar"]
[Black "Shohat, Yotam"]
[WhiteFideId "13413554"]
[BlackFideId "2813955"]
[WhiteElo "2369"]
[BlackElo "2226"]
[Result "1-0"]
[Round "2"]
[TimeControl "180+2"]
[Date "2023.06.06"]
[WhiteClock "0:00:19"]
[BlackClock "0:00:06"]
[Board "21"]

1. e4 {[%clk 0:03:00]}  e5 {[%clk 0:02:59]} 2. Nf3 {[%clk 0:02:55]}  Nc6 {[%clk 0:02:57]} 3. d4 {[%clk 0:02:55]}  exd4 {[%clk 0:02:57]} 4. Bc4 {[%clk 0:02:55]}  Bc5 {[%clk 0:02:57]} 5. c3 {[%clk 0:02:53]}  Nf6 {[%clk 0:02:52]} 6. cxd4 {[%clk 0:02:52]}  Bb4+ {[%clk 0:02:52]} 7. Nc3 {[%clk 0:02:51]}  Nxe4 {[%clk 0:02:49]} 8. O-O {[%clk 0:02:51]}  Bxc3 {[%clk 0:02:48]} 9. d5 {[%clk 0:02:51]}  Bf6 {[%clk 0:02:32]} 10. Re1 {[%clk 0:02:50]}  O-O {[%clk 0:02:31]} 11. Rxe4 {[%clk 0:02:49]}  Ne7 {[%clk 0:02:25]} 12. d6 {[%clk 0:02:10]}  cxd6 {[%clk 0:02:26]} 13. Bg5 {[%clk 0:02:09]}  Ng6 {[%clk 0:02:21]} 14. h4 {[%clk 0:01:58]}  Ne5 {[%clk 0:02:13]} 15. Bb3 {[%clk 0:01:49]}  h6 {[%clk 0:01:47]} 16. Be3 {[%clk 0:01:43]}  Nxf3+ {[%clk 0:01:37]} 17. Qxf3 {[%clk 0:01:42]}  Bxh4 {[%clk 0:01:34]} 18. Bd4 {[%clk 0:01:38]}  Bf6 {[%clk 0:01:34]} 19. Bxf6 {[%clk 0:01:36]}  Qxf6 {[%clk 0:01:34]} 20. Rf4 {[%clk 0:01:34]}  Qe7 {[%clk 0:01:24]} 21. Rd1 {[%clk 0:00:54]}  d5 {[%clk 0:01:12]} 22. Bxd5 {[%clk 0:00:51]}  d6 {[%clk 0:01:12]} 23. Re4 {[%clk 0:00:51]}  Qf6 {[%clk 0:01:05]} 24. Qxf6 {[%clk 0:00:42]}  gxf6 {[%clk 0:01:05]} 25. Re7 {[%clk 0:00:43]}  Bg4 {[%clk 0:00:42]} 26. f3 {[%clk 0:00:42]}  Bf5 {[%clk 0:00:37]} 27. Bxb7 {[%clk 0:00:38]}  Rae8 {[%clk 0:00:36]} 28. Rxe8 {[%clk 0:00:36]}  Rxe8 {[%clk 0:00:37]} 29. Rxd6 {[%clk 0:00:36]}  Rb8 {[%clk 0:00:32]} 30. Bd5 {[%clk 0:00:32]}  Rxb2 {[%clk 0:00:22]} 31. Rxf6 {[%clk 0:00:31]}  Be6 {[%clk 0:00:19]} 32. Bxe6 {[%clk 0:00:29]}  fxe6 {[%clk 0:00:20]} 33. Rxh6 {[%clk 0:00:30]}  Rxa2 {[%clk 0:00:15]} 34. Rxe6 {[%clk 0:00:30]}  a5 {[%clk 0:00:16]} 35. Ra6 {[%clk 0:00:27]}  Kf7 {[%clk 0:00:16]} 36. Kh2 {[%clk 0:00:25]}  a4 {[%clk 0:00:16]} 37. f4 {[%clk 0:00:24]}  a3 {[%clk 0:00:17]} 38. Kh3 {[%clk 0:00:20]}  Ra1 {[%clk 0:00:17]} 39. Kg4 {[%clk 0:00:18]}  a2 {[%clk 0:00:18]} 40. Kf5 {[%clk 0:00:18]}  Ke7 {[%clk 0:00:12]} 41. g4 {[%clk 0:00:18]}  Kf7 {[%clk 0:00:12]} 42. Ra7+ {[%clk 0:00:18]}  Ke8 {[%clk 0:00:12]} 43. g5 {[%clk 0:00:18]}  Kf8 {[%clk 0:00:11]} 44. Kf6 {[%clk 0:00:18]}  Ke8 {[%clk 0:00:11]} 45. f5 {[%clk 0:00:19]}  Kd8 {[%clk 0:00:08]} 46. g6 {[%clk 0:00:19]}  Ke8 {[%clk 0:00:06]} 47. g7 {[%clk 0:00:19]}  Rg1 {[%clk 0:00:06]} 48. Rxa2 {[%clk 0:00:19]}  Kd7 {[%clk 0:00:06]} 49. Ra8 {[%clk 0:00:19]} 1-0


[Site "https://www.chess.com"]

[Event "Titled Tuesday Blitz June 6 Early 2023"]
[White "Degenbaev, Aziz"]
[Black "Elsa167"]
[WhiteFideId "13802640"]
[WhiteElo "2152"]
[BlackElo "2913"]
[Result "0-1"]
[Round "2"]
[TimeControl "180+2"]
[Date "2023.06.06"]
[WhiteClock "0:01:19"]
[BlackClock "0:01:52"]
[Board "22"]

1. e4 {[%clk 0:03:00]}  e6 {[%clk 0:02:59]} 2. d4 {[%clk 0:03:00]}  d5 {[%clk 0:02:59]} 3. Nc3 {[%clk 0:03:01]}  Bb4 {[%clk 0:02:59]} 4. e5 {[%clk 0:03:00]}  c5 {[%clk 0:03:00]} 5. a3 {[%clk 0:03:00]}  Bxc3+ {[%clk 0:03:01]} 6. bxc3 {[%clk 0:03:01]}  Nc6 {[%clk 0:03:01]} 7. Nf3 {[%clk 0:03:01]}  Qa5 {[%clk 0:03:01]} 8. Bd2 {[%clk 0:02:59]}  Nge7 {[%clk 0:03:01]} 9. a4 {[%clk 0:02:56]}  Bd7 {[%clk 0:03:01]} 10. Bd3 {[%clk 0:02:53]}  c4 {[%clk 0:03:01]} 11. Be2 {[%clk 0:02:53]}  f6 {[%clk 0:03:02]} 12. O-O {[%clk 0:02:51]}  O-O-O {[%clk 0:02:51]} 13. Qc1 {[%clk 0:02:38]}  Ng6 {[%clk 0:02:50]} 14. exf6 {[%clk 0:02:21]}  gxf6 {[%clk 0:02:50]} 15. Qa3 {[%clk 0:02:22]}  e5 {[%clk 0:02:45]} 16. Rfb1 {[%clk 0:02:19]}  e4 {[%clk 0:02:15]} 17. Ne1 {[%clk 0:02:16]}  Nxd4 {[%clk 0:01:58]} 18. cxd4 {[%clk 0:02:08]}  Qxd2 {[%clk 0:01:57]} 19. Qc5+ {[%clk 0:02:00]}  Bc6 {[%clk 0:01:58]} 20. Bg4+ {[%clk 0:01:19]}  Kb8 {[%clk 0:01:56]} 21. Rxb7+ {[%clk 0:01:19]}  Bxb7 {[%clk 0:01:52]} 0-1


[Site "https://www.chess.com"]

[Event "Titled Tuesday Blitz June 6 Early 2023"]
[White "Terry, Renato"]
[Black "Malyi, Viacheslav"]
[WhiteFideId "3803457"]
[BlackFideId "14123983"]
[WhiteElo "2575"]
[BlackElo "2291"]
[Result "1-0"]
[Round "2"]
[TimeControl "180+2"]
[Date "2023.06.06"]
[WhiteClock "0:00:35"]
[BlackClock "0:01:19"]
[Board "23"]

1. e4 {[%clk 0:03:00]}  e5 {[%clk 0:02:56]} 2. Nf3 {[%clk 0:03:00]}  Nc6 {[%clk 0:02:56]} 3. Nc3 {[%clk 0:02:57]}  Nf6 {[%clk 0:02:55]} 4. g3 {[%clk 0:02:55]}  Bc5 {[%clk 0:02:54]} 5. Bg2 {[%clk 0:02:55]}  d6 {[%clk 0:02:55]} 6. h3 {[%clk 0:02:50]}  a6 {[%clk 0:02:50]} 7. O-O {[%clk 0:02:49]}  Be6 {[%clk 0:02:49]} 8. d3 {[%clk 0:02:49]}  Qd7 {[%clk 0:02:49]} 9. Ng5 {[%clk 0:02:49]}  h6 {[%clk 0:02:47]} 10. Nxe6 {[%clk 0:02:49]}  fxe6 {[%clk 0:02:47]} 11. Kh2 {[%clk 0:02:43]}  O-O {[%clk 0:02:47]} 12. f4 {[%clk 0:02:40]}  d5 {[%clk 0:02:40]} 13. fxe5 {[%clk 0:02:35]}  Nh7 {[%clk 0:02:22]} 14. Rxf8+ {[%clk 0:02:33]}  Rxf8 {[%clk 0:02:22]} 15. exd5 {[%clk 0:02:34]}  exd5 {[%clk 0:02:21]} 16. Ne2 {[%clk 0:01:35]}  Bf2 {[%clk 0:02:13]} 17. d4 {[%clk 0:01:33]}  Ne7 {[%clk 0:02:03]} 18. Qd3 {[%clk 0:01:28]}  c6 {[%clk 0:02:01]} 19. Bd2 {[%clk 0:01:21]}  Qf5 {[%clk 0:01:58]} 20. Qxf5 {[%clk 0:00:56]}  Nxf5 {[%clk 0:01:59]} 21. c3 {[%clk 0:00:57]}  Ne3 {[%clk 0:01:58]} 22. Bxe3 {[%clk 0:00:49]}  Bxe3 {[%clk 0:01:59]} 23. Rf1 {[%clk 0:00:49]}  Ng5 {[%clk 0:01:59]} 24. Rxf8+ {[%clk 0:00:48]}  Kxf8 {[%clk 0:02:00]} 25. h4 {[%clk 0:00:48]}  Ne6 {[%clk 0:01:59]} 26. Bh3 {[%clk 0:00:47]}  Ke7 {[%clk 0:01:57]} 27. Kg2 {[%clk 0:00:47]}  c5 {[%clk 0:01:55]} 28. dxc5 {[%clk 0:00:48]}  Nxc5 {[%clk 0:01:52]} 29. Kf3 {[%clk 0:00:48]}  Bd2 {[%clk 0:01:52]} 30. b3 {[%clk 0:00:44]}  a5 {[%clk 0:01:48]} 31. Bf5 {[%clk 0:00:43]}  b5 {[%clk 0:01:46]} 32. Nf4 {[%clk 0:00:36]}  Bxf4 {[%clk 0:01:36]} 33. gxf4 {[%clk 0:00:37]}  b4 {[%clk 0:01:32]} 34. cxb4 {[%clk 0:00:37]}  axb4 {[%clk 0:01:33]} 35. Ke3 {[%clk 0:00:38]}  Kf7 {[%clk 0:01:22]} 36. Kd4 {[%clk 0:00:35]}  g6 {[%clk 0:01:22]} 37. Bxg6+ {[%clk 0:00:33]}  Kxg6 {[%clk 0:01:18]} 38. Kxc5 {[%clk 0:00:34]}  Kf5 {[%clk 0:01:19]} 39. Kxd5 {[%clk 0:00:35]} 1-0


[Site "https://www.chess.com"]

[Event "Titled Tuesday Blitz June 6 Early 2023"]
[White "Talibov, Shiroghlan"]
[Black "Iskusnyh, Sergei"]
[WhiteFideId "13429078"]
[BlackFideId "4120027"]
[WhiteElo "2274"]
[BlackElo "2492"]
[Result "1-0"]
[Round "2"]
[TimeControl "180+2"]
[Date "2023.06.06"]
[WhiteClock "0:00:01"]
[BlackClock "0:00:01"]
[Board "25"]

1. c4 {[%clk 0:03:00]}  e5 {[%clk 0:02:58]} 2. Nc3 {[%clk 0:02:55]}  Bb4 {[%clk 0:02:56]} 3. g3 {[%clk 0:02:48]}  Bxc3 {[%clk 0:02:55]} 4. bxc3 {[%clk 0:02:44]}  d6 {[%clk 0:02:55]} 5. Bg2 {[%clk 0:02:43]}  Nc6 {[%clk 0:02:55]} 6. d3 {[%clk 0:02:29]}  Nge7 {[%clk 0:02:51]} 7. f4 {[%clk 0:02:23]}  exf4 {[%clk 0:02:47]} 8. Bxf4 {[%clk 0:02:21]}  O-O {[%clk 0:02:45]} 9. Nf3 {[%clk 0:02:21]}  Ng6 {[%clk 0:02:44]} 10. Bd2 {[%clk 0:02:18]}  Bd7 {[%clk 0:02:41]} 11. O-O {[%clk 0:02:18]}  Qc8 {[%clk 0:02:41]} 12. Rf2 {[%clk 0:02:16]}  Bh3 {[%clk 0:02:39]} 13. Bh1 {[%clk 0:02:16]}  Nce5 {[%clk 0:02:38]} 14. Nxe5 {[%clk 0:02:12]}  dxe5 {[%clk 0:02:21]} 15. Rb1 {[%clk 0:01:59]}  c6 {[%clk 0:02:20]} 16. Qb3 {[%clk 0:01:58]}  Qc7 {[%clk 0:01:59]} 17. c5 {[%clk 0:01:29]}  Rae8 {[%clk 0:01:46]} 18. Be4 {[%clk 0:01:20]}  Kh8 {[%clk 0:01:36]} 19. Bf5 {[%clk 0:01:07]}  Bxf5 {[%clk 0:01:32]} 20. Rxf5 {[%clk 0:01:08]}  Re7 {[%clk 0:01:28]} 21. Rbf1 {[%clk 0:01:03]}  f6 {[%clk 0:01:27]} 22. Kg2 {[%clk 0:00:58]}  Rd8 {[%clk 0:01:26]} 23. Be3 {[%clk 0:00:57]}  Red7 {[%clk 0:01:22]} 24. c4 {[%clk 0:00:49]}  Nf8 {[%clk 0:01:20]} 25. R5f2 {[%clk 0:00:50]}  Ne6 {[%clk 0:01:20]} 26. Qa3 {[%clk 0:00:47]}  b6 {[%clk 0:01:13]} 27. cxb6 {[%clk 0:00:46]}  axb6 {[%clk 0:01:14]} 28. Rb1 {[%clk 0:00:45]}  c5 {[%clk 0:01:14]} 29. Qa6 {[%clk 0:00:38]}  Qc6+ {[%clk 0:01:13]} 30. Kg1 {[%clk 0:00:38]}  Rd6 {[%clk 0:01:13]} 31. Qb5 {[%clk 0:00:38]}  Qa8 {[%clk 0:01:11]} 32. a4 {[%clk 0:00:38]}  h6 {[%clk 0:01:08]} 33. Rbf1 {[%clk 0:00:36]}  e4 {[%clk 0:01:08]} 34. dxe4 {[%clk 0:00:33]}  Qxe4 {[%clk 0:01:08]} 35. Qb3 {[%clk 0:00:31]}  Rd1 {[%clk 0:01:01]} 36. Rxd1 {[%clk 0:00:29]}  Rxd1+ {[%clk 0:01:00]} 37. Qxd1 {[%clk 0:00:30]}  Qxe3 {[%clk 0:01:00]} 38. Qd5 {[%clk 0:00:25]}  Nd4 {[%clk 0:00:58]} 39. Kf1 {[%clk 0:00:18]}  Qb3 {[%clk 0:00:37]} 40. Kg2 {[%clk 0:00:16]}  Nc2 {[%clk 0:00:30]} 41. Qa8+ {[%clk 0:00:13]}  Kh7 {[%clk 0:00:29]} 42. Qe4+ {[%clk 0:00:14]}  Kh8 {[%clk 0:00:29]} 43. Kh3 {[%clk 0:00:09]}  Qxa4 {[%clk 0:00:26]} 44. e3 {[%clk 0:00:08]}  Qd7+ {[%clk 0:00:22]} 45. g4 {[%clk 0:00:05]}  Nb4 {[%clk 0:00:17]} 46. Qf5 {[%clk 0:00:03]}  Qe8 {[%clk 0:00:16]} 47. Qf4 {[%clk 0:00:04]}  Nd3 {[%clk 0:00:15]} 48. Qf3 {[%clk 0:00:04]}  Nxf2+ {[%clk 0:00:14]} 49. Qxf2 {[%clk 0:00:05]}  Qe4 {[%clk 0:00:14]} 50. Qe2 {[%clk 0:00:05]}  Kh7 {[%clk 0:00:12]} 51. Kg3 {[%clk 0:00:06]}  Qe5+ {[%clk 0:00:11]} 52. Kg2 {[%clk 0:00:06]}  Qe4+ {[%clk 0:00:11]} 53. Kg3 {[%clk 0:00:05]}  Qe5+ {[%clk 0:00:09]} 54. Kg2 {[%clk 0:00:06]}  Qc3 {[%clk 0:00:10]} 55. h3 {[%clk 0:00:05]}  Qe5 {[%clk 0:00:10]} 56. Qc2+ {[%clk 0:00:05]}  Kg8 {[%clk 0:00:08]} 57. Qd3 {[%clk 0:00:05]}  Qe6 {[%clk 0:00:06]} 58. Kf3 {[%clk 0:00:05]}  Qc6+ {[%clk 0:00:06]} 59. e4 {[%clk 0:00:05]}  Qc7 {[%clk 0:00:04]} 60. Qd5+ {[%clk 0:00:05]}  Kh7 {[%clk 0:00:03]} 61. Qf5+ {[%clk 0:00:05]}  Kh8 {[%clk 0:00:04]} 62. Qe6 {[%clk 0:00:03]}  Qe5 {[%clk 0:00:03]} 63. Qxb6 {[%clk 0:00:02]}  Qc3+ {[%clk 0:00:02]} 64. Kf4 {[%clk 0:00:02]}  Qxc4 {[%clk 0:00:03]} 65. Kf5 {[%clk 0:00:02]}  Qf7 {[%clk 0:00:01]} 66. Qb8+ {[%clk 0:00:01]} 1-0


[Site "https://www.chess.com"]

[Event "Titled Tuesday Blitz June 6 Early 2023"]
[White "Lymar, Vladislav"]
[Black "Aravindh, Chithambaram VR."]
[WhiteFideId "14162180"]
[BlackFideId "5072786"]
[WhiteElo "2234"]
[BlackElo "2596"]
[Result "0-1"]
[Round "2"]
[TimeControl "180+2"]
[Date "2023.06.06"]
[WhiteClock "0:01:32"]
[BlackClock "0:01:37"]
[Board "26"]

1. d4 {[%clk 0:03:00]}  g6 {[%clk 0:02:57]} 2. c4 {[%clk 0:03:01]}  Bg7 {[%clk 0:02:58]} 3. Nc3 {[%clk 0:03:01]}  d6 {[%clk 0:02:58]} 4. e4 {[%clk 0:02:58]}  e5 {[%clk 0:02:59]} 5. d5 {[%clk 0:02:55]}  Ne7 {[%clk 0:02:58]} 6. Bd3 {[%clk 0:02:54]}  O-O {[%clk 0:02:58]} 7. Nge2 {[%clk 0:02:54]}  Nd7 {[%clk 0:02:57]} 8. Be3 {[%clk 0:02:54]}  f5 {[%clk 0:02:58]} 9. exf5 {[%clk 0:02:52]}  Nxf5 {[%clk 0:02:57]} 10. Bxf5 {[%clk 0:02:47]}  gxf5 {[%clk 0:02:58]} 11. f4 {[%clk 0:02:46]}  Nf6 {[%clk 0:02:54]} 12. O-O {[%clk 0:02:46]}  e4 {[%clk 0:02:51]} 13. h3 {[%clk 0:02:41]}  a6 {[%clk 0:02:49]} 14. Nd4 {[%clk 0:02:33]}  Qe8 {[%clk 0:02:49]} 15. Kh2 {[%clk 0:02:29]}  Bd7 {[%clk 0:02:49]} 16. Rg1 {[%clk 0:02:13]}  c5 {[%clk 0:02:34]} 17. dxc6 {[%clk 0:02:10]}  bxc6 {[%clk 0:02:35]} 18. Qe2 {[%clk 0:01:56]}  Qg6 {[%clk 0:02:26]} 19. Rad1 {[%clk 0:01:50]}  Rab8 {[%clk 0:02:12]} 20. Na4 {[%clk 0:01:44]}  c5 {[%clk 0:02:10]} 21. Nxc5 {[%clk 0:01:41]}  dxc5 {[%clk 0:02:10]} 22. Nb3 {[%clk 0:01:41]}  Ba4 {[%clk 0:02:03]} 23. Bxc5 {[%clk 0:01:38]}  Rfe8 {[%clk 0:01:56]} 24. Bd6 {[%clk 0:01:38]}  Bxb3 {[%clk 0:01:56]} 25. axb3 {[%clk 0:01:33]}  Rxb3 {[%clk 0:01:56]} 26. c5 {[%clk 0:01:32]}  Qg3+ {[%clk 0:01:36]} 27. Kh1 {[%clk 0:01:32]}  Ng4 {[%clk 0:01:37]} 0-1


[Site "https://www.chess.com"]

[Event "Titled Tuesday Blitz June 6 Early 2023"]
[White "Tang, Andrew"]
[Black "Diaz Rosas, Julio Cesar"]
[WhiteFideId "2059630"]
[BlackFideId "5105099"]
[WhiteElo "2600"]
[BlackElo "2284"]
[Result "1-0"]
[Round "2"]
[TimeControl "180+2"]
[Date "2023.06.06"]
[WhiteClock "0:00:52"]
[BlackClock "0:00:12"]
[Board "27"]

1. d4 {[%clk 0:02:57]}  d5 {[%clk 0:02:55]} 2. Bf4 {[%clk 0:02:56]}  Nf6 {[%clk 0:02:53]} 3. e3 {[%clk 0:02:56]}  g6 {[%clk 0:02:53]} 4. Nf3 {[%clk 0:02:51]}  Bg7 {[%clk 0:02:53]} 5. Nbd2 {[%clk 0:02:48]}  O-O {[%clk 0:02:52]} 6. c3 {[%clk 0:02:47]}  a5 {[%clk 0:02:53]} 7. h3 {[%clk 0:02:45]}  c6 {[%clk 0:02:45]} 8. Be2 {[%clk 0:02:43]}  Na6 {[%clk 0:02:41]} 9. O-O {[%clk 0:02:42]}  Nc7 {[%clk 0:02:40]} 10. b4 {[%clk 0:02:37]}  Bf5 {[%clk 0:02:22]} 11. a4 {[%clk 0:02:35]}  Ne4 {[%clk 0:02:14]} 12. Nxe4 {[%clk 0:02:33]}  Bxe4 {[%clk 0:02:11]} 13. Qb3 {[%clk 0:02:25]}  axb4 {[%clk 0:02:00]} 14. cxb4 {[%clk 0:02:13]}  Ne8 {[%clk 0:01:38]} 15. b5 {[%clk 0:02:03]}  Nd6 {[%clk 0:01:33]} 16. bxc6 {[%clk 0:01:59]}  bxc6 {[%clk 0:01:34]} 17. Rfc1 {[%clk 0:01:59]}  Bxf3 {[%clk 0:01:24]} 18. gxf3 {[%clk 0:01:46]}  Qd7 {[%clk 0:01:23]} 19. a5 {[%clk 0:01:37]}  Qxh3 {[%clk 0:00:59]} 20. Bxd6 {[%clk 0:01:24]}  exd6 {[%clk 0:00:59]} 21. Rxc6 {[%clk 0:01:24]}  Rfb8 {[%clk 0:00:34]} 22. Qxd5 {[%clk 0:01:20]}  Rb2 {[%clk 0:00:32]} 23. Rb6 {[%clk 0:01:06]}  Rxa5 {[%clk 0:00:13]} 24. Qxa5 {[%clk 0:00:58]}  Rxe2 {[%clk 0:00:13]} 25. Rb8+ {[%clk 0:00:56]}  Bf8 {[%clk 0:00:12]} 26. Qd8 {[%clk 0:00:52]} 1-0


[Site "https://www.chess.com"]

[Event "Titled Tuesday Blitz June 6 Early 2023"]
[White "Ahmadzada, Ahmad"]
[Black "Machidon, Cristi"]
[WhiteFideId "13413007"]
[BlackFideId "13904590"]
[WhiteElo "2388"]
[BlackElo "2355"]
[Result "1-0"]
[Round "2"]
[TimeControl "180+2"]
[Date "2023.06.06"]
[WhiteClock "0:00:55"]
[BlackClock "0:00:43"]
[Board "29"]

1. Nf3 {[%clk 0:03:00]}  c5 {[%clk 0:02:58]} 2. g3 {[%clk 0:02:59]}  d5 {[%clk 0:02:58]} 3. Bg2 {[%clk 0:03:00]}  Nc6 {[%clk 0:02:58]} 4. O-O {[%clk 0:03:01]}  e5 {[%clk 0:02:58]} 5. c4 {[%clk 0:03:01]}  d4 {[%clk 0:02:57]} 6. d3 {[%clk 0:03:01]}  Nf6 {[%clk 0:02:52]} 7. e3 {[%clk 0:03:01]}  Nd7 {[%clk 0:02:49]} 8. exd4 {[%clk 0:03:02]}  cxd4 {[%clk 0:02:50]} 9. Re1 {[%clk 0:03:02]}  Be7 {[%clk 0:02:50]} 10. Nbd2 {[%clk 0:02:59]}  O-O {[%clk 0:02:49]} 11. Ne4 {[%clk 0:03:00]}  h6 {[%clk 0:02:46]} 12. g4 {[%clk 0:02:59]}  Re8 {[%clk 0:02:44]} 13. a3 {[%clk 0:02:52]}  a5 {[%clk 0:02:44]} 14. b3 {[%clk 0:02:53]}  Nf8 {[%clk 0:02:44]} 15. h3 {[%clk 0:02:46]}  Ng6 {[%clk 0:02:42]} 16. Ng3 {[%clk 0:02:44]}  Bf8 {[%clk 0:02:26]} 17. Ra2 {[%clk 0:02:44]}  Be6 {[%clk 0:02:15]} 18. Rae2 {[%clk 0:02:44]}  f6 {[%clk 0:02:13]} 19. Nh2 {[%clk 0:02:30]}  Qd7 {[%clk 0:02:12]} 20. Be4 {[%clk 0:02:04]}  Bf7 {[%clk 0:02:07]} 21. Nh5 {[%clk 0:02:01]}  Rab8 {[%clk 0:01:45]} 22. Nf1 {[%clk 0:01:59]}  Nd8 {[%clk 0:01:34]} 23. Bxh6 {[%clk 0:01:57]}  Ne6 {[%clk 0:01:27]} 24. Qd2 {[%clk 0:01:48]}  Nc5 {[%clk 0:01:14]} 25. Bf5 {[%clk 0:01:44]}  Qc7 {[%clk 0:01:11]} 26. Nfg3 {[%clk 0:01:35]}  Nxb3 {[%clk 0:01:01]} 27. Qd1 {[%clk 0:01:25]}  a4 {[%clk 0:01:01]} 28. Bxg7 {[%clk 0:01:11]}  Bxg7 {[%clk 0:01:00]} 29. Nxg7 {[%clk 0:01:11]}  Kxg7 {[%clk 0:01:01]} 30. Nh5+ {[%clk 0:01:12]}  Kh8 {[%clk 0:00:57]} 31. Nxf6 {[%clk 0:01:12]}  Nf4 {[%clk 0:00:51]} 32. g5 {[%clk 0:01:06]}  Be6 {[%clk 0:00:47]} 33. Rxe5 {[%clk 0:01:05]}  Bxf5 {[%clk 0:00:43]} 34. Rxe8+ {[%clk 0:01:01]}  Rxe8 {[%clk 0:00:43]} 35. Rxe8+ {[%clk 0:01:01]}  Kg7 {[%clk 0:00:43]} 36. Rg8+ {[%clk 0:00:54]}  Kf7 {[%clk 0:00:43]} 37. Rg7+ {[%clk 0:00:55]} 1-0


[Site "https://www.chess.com"]

[Event "Titled Tuesday Blitz June 6 Early 2023"]
[White "Garcia Blanco, Omar"]
[Black "Grigorjev, Iljya"]
[WhiteFideId "2287153"]
[BlackFideId "24159565"]
[WhiteElo "2356"]
[BlackElo "2323"]
[Result "0-1"]
[Round "2"]
[TimeControl "180+2"]
[Date "2023.06.06"]
[WhiteClock "0:01:12"]
[BlackClock "0:01:10"]
[Board "30"]

1. e4 {[%clk 0:03:00]}  e5 {[%clk 0:02:59]} 2. Nc3 {[%clk 0:03:01]}  Nc6 {[%clk 0:03:00]} 3. Bc4 {[%clk 0:03:01]}  Nf6 {[%clk 0:03:00]} 4. d3 {[%clk 0:03:01]}  Bc5 {[%clk 0:03:00]} 5. f4 {[%clk 0:03:00]}  O-O {[%clk 0:03:01]} 6. Nf3 {[%clk 0:03:01]}  Ng4 {[%clk 0:03:01]} 7. Ng5 {[%clk 0:02:47]}  d5 {[%clk 0:03:01]} 8. exd5 {[%clk 0:02:48]}  Bf2+ {[%clk 0:02:47]} 9. Kf1 {[%clk 0:02:40]}  Nd4 {[%clk 0:02:12]} 10. d6 {[%clk 0:01:58]}  exf4 {[%clk 0:01:43]} 11. Nxf7 {[%clk 0:01:45]}  Rxf7 {[%clk 0:01:41]} 12. Bxf7+ {[%clk 0:01:46]}  Kxf7 {[%clk 0:01:42]} 13. Ne4 {[%clk 0:01:46]}  Be3 {[%clk 0:01:39]} 14. h3 {[%clk 0:01:46]}  Qh4 {[%clk 0:01:31]} 15. Qe1 {[%clk 0:01:43]}  Qxe1+ {[%clk 0:01:28]} 16. Kxe1 {[%clk 0:01:44]}  Nxc2+ {[%clk 0:01:25]} 17. Ke2 {[%clk 0:01:21]}  Nxa1 {[%clk 0:01:26]} 18. Bxe3 {[%clk 0:01:21]}  Nxe3 {[%clk 0:01:25]} 19. Rxa1 {[%clk 0:01:21]}  cxd6 {[%clk 0:01:20]} 20. Rc1 {[%clk 0:01:17]}  Ke7 {[%clk 0:01:15]} 21. Rc7+ {[%clk 0:01:15]}  Bd7 {[%clk 0:01:16]} 22. Rxb7 {[%clk 0:01:16]}  Nxg2 {[%clk 0:01:12]} 23. Kf3 {[%clk 0:01:14]}  Ne1+ {[%clk 0:01:11]} 24. Kxf4 {[%clk 0:01:12]}  Nxd3+ {[%clk 0:01:10]} 25. Ke3 {[%clk 0:01:12]}  Nc5 {[%clk 0:01:10]} 0-1


[Site "https://www.chess.com"]

[Event "Titled Tuesday Blitz June 6 Early 2023"]
[White "Nguyen, Ngoc Truong Son"]
[Black "Poltorak, Sebastian"]
[WhiteFideId "12401110"]
[BlackFideId "1199498"]
[WhiteElo "2556"]
[BlackElo "2195"]
[Result "1-0"]
[Round "2"]
[TimeControl "180+2"]
[Date "2023.06.06"]
[WhiteClock "0:00:46"]
[BlackClock "0:00:41"]
[Board "31"]

1. d4 {[%clk 0:02:58]}  Nf6 {[%clk 0:02:59]} 2. c4 {[%clk 0:02:57]}  g6 {[%clk 0:03:00]} 3. Nc3 {[%clk 0:02:56]}  d5 {[%clk 0:03:01]} 4. Nf3 {[%clk 0:02:56]}  Bg7 {[%clk 0:03:01]} 5. cxd5 {[%clk 0:02:56]}  Nxd5 {[%clk 0:03:01]} 6. e4 {[%clk 0:02:56]}  Nxc3 {[%clk 0:03:02]} 7. bxc3 {[%clk 0:02:57]}  c5 {[%clk 0:03:03]} 8. Bb5+ {[%clk 0:02:55]}  Nc6 {[%clk 0:03:03]} 9. O-O {[%clk 0:02:54]}  O-O {[%clk 0:03:02]} 10. Bxc6 {[%clk 0:02:53]}  bxc6 {[%clk 0:03:02]} 11. Qc2 {[%clk 0:02:53]}  Bg4 {[%clk 0:02:58]} 12. Ne5 {[%clk 0:02:48]}  Bxe5 {[%clk 0:02:47]} 13. dxe5 {[%clk 0:02:49]}  Qc7 {[%clk 0:02:48]} 14. f4 {[%clk 0:02:36]}  Rfd8 {[%clk 0:02:37]} 15. f5 {[%clk 0:02:18]}  Qd7 {[%clk 0:01:49]} 16. Be3 {[%clk 0:01:48]}  c4 {[%clk 0:01:00]} 17. h3 {[%clk 0:01:38]}  Qd3 {[%clk 0:00:59]} 18. Qxd3 {[%clk 0:01:31]}  Rxd3 {[%clk 0:01:00]} 19. Rae1 {[%clk 0:01:23]}  gxf5 {[%clk 0:00:54]} 20. exf5 {[%clk 0:01:13]}  Bxf5 {[%clk 0:00:53]} 21. Rxf5 {[%clk 0:01:12]}  Rxc3 {[%clk 0:00:54]} 22. Rg5+ {[%clk 0:00:56]}  Kh8 {[%clk 0:00:54]} 23. Bc5 {[%clk 0:00:50]}  f6 {[%clk 0:00:40]} 24. exf6 {[%clk 0:00:47]}  exf6 {[%clk 0:00:41]} 25. Bd4 {[%clk 0:00:46]} 1-0


[Site "https://www.chess.com"]

[Event "Titled Tuesday Blitz June 6 Early 2023"]
[White "Molenda, Marcin"]
[Black "Svane, Frederik"]
[WhiteFideId "1173065"]
[BlackFideId "12923044"]
[WhiteElo "2286"]
[BlackElo "2502"]
[Result "0-1"]
[Round "2"]
[TimeControl "180+2"]
[Date "2023.06.06"]
[WhiteClock "0:01:37"]
[BlackClock "0:00:32"]
[Board "32"]

1. e4 {[%clk 0:02:57]}  e6 {[%clk 0:02:59]} 2. b3 {[%clk 0:02:55]}  c5 {[%clk 0:02:57]} 3. d4 {[%clk 0:02:49]}  cxd4 {[%clk 0:02:56]} 4. Qxd4 {[%clk 0:02:50]}  Nc6 {[%clk 0:02:56]} 5. Qd2 {[%clk 0:02:49]}  Nf6 {[%clk 0:02:53]} 6. Nc3 {[%clk 0:02:48]}  Bb4 {[%clk 0:02:51]} 7. f3 {[%clk 0:02:48]}  d5 {[%clk 0:02:47]} 8. exd5 {[%clk 0:02:48]}  exd5 {[%clk 0:02:01]} 9. a3 {[%clk 0:02:36]}  Bxc3 {[%clk 0:01:59]} 10. Qxc3 {[%clk 0:02:36]}  O-O {[%clk 0:01:59]} 11. Bd3 {[%clk 0:02:34]}  d4 {[%clk 0:01:57]} 12. Qc5 {[%clk 0:02:31]}  Re8+ {[%clk 0:01:52]} 13. Ne2 {[%clk 0:02:31]}  Re5 {[%clk 0:01:53]} 14. Qxe5 {[%clk 0:02:16]}  Nxe5 {[%clk 0:01:54]} 15. O-O {[%clk 0:02:15]}  Nxd3 {[%clk 0:01:54]} 16. cxd3 {[%clk 0:02:16]}  Bf5 {[%clk 0:01:54]} 17. Rd1 {[%clk 0:02:16]}  Rc8 {[%clk 0:01:53]} 18. Bg5 {[%clk 0:02:09]}  h6 {[%clk 0:01:50]} 19. Bh4 {[%clk 0:02:09]}  Rc2 {[%clk 0:01:24]} 20. Ng3 {[%clk 0:02:06]}  Bh7 {[%clk 0:01:24]} 21. Ne4 {[%clk 0:02:03]}  g5 {[%clk 0:01:17]} 22. Bf2 {[%clk 0:02:03]}  Bxe4 {[%clk 0:01:03]} 23. dxe4 {[%clk 0:02:00]}  d3 {[%clk 0:01:03]} 24. Bxa7 {[%clk 0:01:55]}  b6 {[%clk 0:01:03]} 25. a4 {[%clk 0:01:50]}  Qc7 {[%clk 0:00:33]} 26. Rxd3 {[%clk 0:01:44]}  Qxa7 {[%clk 0:00:33]} 27. h4 {[%clk 0:01:40]}  b5+ {[%clk 0:00:32]} 28. Kh1 {[%clk 0:01:37]}  Qf2 {[%clk 0:00:32]} 0-1


[Site "https://www.chess.com"]